fUSD/lending_fUSD_20241218
["ID","MTS","AMOUNT","RATE_DAILY","PERIOD"]
[345796394,1734481844618,-1070.70619385,0.00024999,10]
[345796395,1734481844628,-500.0,0.00024999,4]
[345796396,1734481844637,-500.0,0.00024999,4]
[345796397,1734481844647,-500.0,0.00024999,4]
[345796398,1734481844656,-500.0,0.00024999,4]
[345796399,1734481844666,-242.07510696,0.00024999,4]
[345796400,1734481844676,-999.0,0.00024999,2]
[345796401,1734481844685,-500.0,0.00024999,4]
[345796402,1734481844696,-500.0,0.00024999,4]
[345796403,1734481844705,-500.0,0.00024999,4]
[345796404,1734481844715,-500.0,0.00024999,4]
[345796405,1734481844724,-1070.70619384,0.00024999,10]
[345796406,1734481844734,-1070.70619384,0.00024999,10]
[345796407,1734481844744,-500.0,0.00024999,4]
[345796408,1734481844754,-500.0,0.00024999,4]
[345796409,1734481844763,-500.0,0.00024999,4]
[345796410,1734481844776,-500.0,0.00024999,4]
[345796411,1734481844786,-500.0,0.00024999,4]
[345796412,1734481844795,-500.0,0.00024999,4]
[345796413,1734481844805,-553.99931042,0.00024999,4]
[345796414,1734481844814,-2000.0,0.00024999,2]
[345796415,1734481844823,-576.6,0.00024999,4]
[345796416,1734481844833,-576.6,0.00024999,4]
[345796417,1734481844843,-576.6,0.00024999,4]
[345796418,1734481844852,-576.6,0.00024999,4]
[345796419,1734481844862,-576.6,0.00024999,4]
[345796420,1734481844872,-500.0,0.00024999,4]
[345796421,1734481844882,-576.6,0.00024999,4]
[345796422,1734481844891,-576.6,0.00024999,4]
[345796423,1734481844901,-576.6,0.00024999,4]
[345796424,1734481844911,-576.6,0.00024999,4]
[345796425,1734481844919,-576.6,0.00024999,4]
[345796426,1734481844929,-576.6,0.00024999,4]
[345796427,1734481844938,-576.6,0.00024999,4]
[345796428,1734481844948,-576.6,0.00024999,4]
[345796429,1734481844957,-576.6,0.00024999,4]
[345796430,1734481844967,-576.6,0.00024999,4]
[345796431,1734481844976,-576.6,0.00024999,4]
[345796432,1734481844986,-576.6,0.00024999,4]
[345796433,1734481844996,-576.6,0.00024999,4]
[345796434,1734481845005,-576.6,0.00024999,4]
[345796435,1734481845016,-576.6,0.00024999,4]
[345796436,1734481845029,-576.6,0.00024999,4]
[345796437,1734481845038,-576.6,0.00024999,4]
[345796438,1734481845048,-576.8,0.00024999,4]
[345796439,1734481845059,-500.0,0.00024999,4]
[345796440,1734481845069,-500.0,0.00024999,4]
[345796441,1734481845078,-500.0,0.00024999,4]
[345796442,1734481845088,-500.0,0.00024999,4]
[345796443,1734481845098,-500.0,0.00024999,4]
[345796444,1734481845108,-500.0,0.00024999,4]
[345796445,1734481845117,-500.0,0.00024999,4]
[345796446,1734481845126,-500.0,0.00024999,4]
[345796447,1734481845136,-500.0,0.00024999,4]
[345796448,1734481845145,-500.0,0.00024999,4]
[345796449,1734481845155,-500.0,0.00024999,4]
[345796450,1734481845165,-500.0,0.00024999,4]
[345796451,1734481845175,-500.0,0.00024999,4]
[345796452,1734481845185,-500.0,0.00024999,4]
[345796453,1734481845195,-500.0,0.00024999,4]
[345796454,1734481845205,-500.0,0.00024999,4]
[345796455,1734481845215,-500.0,0.00024999,4]
[345796456,1734481845225,-500.0,0.00024999,4]
[345796457,1734481845234,-285.56036496,0.00024999,4]
[345796458,1734481845244,-500.0,0.00024999,4]
[345796459,1734481845254,-500.0,0.00024999,4]
[345796460,1734481845272,-500.0,0.00024999,4]
[345796461,1734481845287,-500.0,0.00024999,4]
[345796462,1734481845298,-500.0,0.00024999,4]
[345796464,1734481845308,-500.0,0.00024999,4]
[345796467,1734481845320,-500.0,0.00024999,4]
[345796468,1734481845330,-500.0,0.00024999,4]
[345796469,1734481845341,-500.0,0.00024999,4]
[345796470,1734481845351,-1070.70619385,0.00024999,10]
[345796471,1734481845360,-500.0,0.00024999,4]
[345796472,1734481845371,-500.0,0.00024999,4]
[345796473,1734481845381,-500.0,0.00024999,4]
[345796475,1734481845391,-500.0,0.00024999,4]
[345796476,1734481845401,-500.0,0.00024999,4]
[345796477,1734481845414,-500.0,0.00024999,4]
[345796478,1734481845424,-500.0,0.00024999,4]
[345796479,1734481845434,-500.0,0.00024999,4]
[345796480,1734481845443,-500.0,0.00024999,4]
[345796481,1734481845453,-500.0,0.00024999,4]
[345796482,1734481845463,-254.3636604,0.00024999,4]
[345796483,1734481845472,-500.0,0.00024999,4]
[345796484,1734481845483,-500.0,0.00024999,4]
[345796485,1734481845493,-500.0,0.00024999,4]
[345796486,1734481845503,-298.0,0.00024999,4]
[345796487,1734481845513,-500.0,0.00024999,4]
[345796488,1734481845528,-500.0,0.00024999,4]
[345796489,1734481845539,-500.0,0.00024999,4]
[345796490,1734481845548,-500.0,0.00024999,4]
[345796491,1734481845559,-500.0,0.00024999,4]
[345796492,1734481845570,-500.0,0.00024999,4]
[345796493,1734481845579,-500.0,0.00024999,4]
[345796494,1734481845589,-500.0,0.00024999,4]
[345796495,1734481845599,-500.0,0.00024999,4]
[345796496,1734481845608,-500.0,0.00024999,4]
[345796497,1734481845619,-500.0,0.00024999,4]
[345796498,1734481845629,-500.0,0.00024999,4]
[345796499,1734481845640,-500.0,0.00024999,4]
[345796500,1734481845650,-500.0,0.00024999,4]
[345796501,1734481845660,-500.0,0.00024999,4]
[345796502,1734481845670,-500.0,0.00024999,4]
[345796503,1734481845680,-500.0,0.00024999,4]
[345796504,1734481845690,-500.0,0.00024999,4]
[345796505,1734481845701,-365.64,0.00024999,4]
[345796506,1734481845710,-500.0,0.00024999,4]
[345796507,1734481845720,-500.0,0.00024999,4]
[345796508,1734481845729,-500.0,0.00024999,4]
[345796509,1734481845739,-500.0,0.00024999,4]
[345796510,1734481845748,-214.65,0.00024999,4]
[345796511,1734481845758,-500.0,0.00024999,4]
[345796512,1734481845770,-500.0,0.00024999,4]
[345796513,1734481845780,-500.0,0.00024999,4]
[345796514,1734481845790,-500.0,0.00024999,4]
[345796515,1734481845799,-500.0,0.00024999,4]
[345796516,1734481845809,-500.0,0.00024999,4]
[345796518,1734481845819,-500.0,0.00024999,4]
[345796520,1734481845830,-500.0,0.00024999,4]
[345796521,1734481845840,-500.0,0.00024999,4]
[345796522,1734481845850,-500.0,0.00024999,4]
[345796523,1734481845863,-500.0,0.00024999,4]
[345796524,1734481845872,-500.0,0.00024999,4]
[345796525,1734481845882,-403.26,0.00024999,4]
[345796526,1734481845892,-500.0,0.00024999,4]
[345796527,1734481845901,-500.0,0.00024999,4]
[345796528,1734481845911,-500.0,0.00024999,4]
[345796529,1734481845920,-500.0,0.00024999,4]
[345796530,1734481845929,-500.0,0.00024999,4]
[345796531,1734481845939,-500.0,0.00024999,4]
[345796532,1734481845952,-500.0,0.00024999,4]
[345796533,1734481845961,-500.0,0.00024999,4]
[345796534,1734481845971,-500.0,0.00024999,4]
[345796535,1734481845980,-500.0,0.00024999,4]
[345796536,1734481845990,-500.0,0.00024999,4]
[345796537,1734481845999,-500.0,0.00024999,4]
[345796538,1734481846008,-473.81,0.00024999,4]
[345796539,1734481846020,-500.0,0.00024999,4]
[345796540,1734481846030,-500.0,0.00024999,4]
[345796541,1734481846040,-500.0,0.00024999,4]
[345796542,1734481846049,-500.0,0.00024999,4]
[345796543,1734481846059,-500.0,0.00024999,4]
[345796544,1734481846069,-500.0,0.00024999,4]
[345796545,1734481846078,-500.0,0.00024999,4]
[345796546,1734481846088,-500.0,0.00024999,4]
[345796547,1734481846280,-653.0,0.00025,2]
[345796548,1734481846290,-341650.09066784,0.00025,5]
[345796549,1734481846301,-1105.29796239,0.00025,2]
[345796550,1734481846311,-17686.57956938,0.00025,3]
[345796551,1734481846322,-6992237.93828542,0.00025,2]
[345796552,1734481846354,-8956.1,0.00025,2]
[345796553,1734481846374,-371.18738233,0.00024999,4]
[345796554,1734481846390,-128.81261767,0.00024999,4]
[345796555,1734481846400,-79435.51564424,0.00025,2]
[345796556,1734481846412,-328918.15640501,0.00025,2]
[345796557,1734481846425,-3497.6150036,0.00025,2]
[345796558,1734481846437,-465.401043,0.00025,2]
[345796559,1734481846448,-50642.59697939,0.00025,2]
[345796560,1734481846460,-17234.67888702,0.00025,2]
[345796561,1734481846472,-820.000011,0.00025,2]
[345796562,1734481846484,-594.99998642,0.00025,2]
[345796563,1734481846497,-400157.40900003,0.00025,2]
[345796564,1734481846509,-735.15365519,0.00025,2]
[345796565,1734481846594,-500.0,0.00024999,4]
[345796566,1734481846604,-500.0,0.00024999,4]
[345796567,1734481846615,-500.0,0.00024999,4]
[345796568,1734481846625,-500.0,0.00024999,4]
[345796569,1734481846635,-500.0,0.00024999,4]
[345796570,1734481846644,-88682.00000001,0.00025,2]
[345796571,1734481846661,-500.0,0.00024999,4]
[345796572,1734481846671,-1272.5779999,0.00025,2]
[345796573,1734481846683,-189473.3641415,0.00025,2]
[345796574,1734481846694,-90527.26740675,0.00025,2]
[345796575,1734481846706,-968.43871744,0.00025,2]
[345796576,1734481846717,-4473.7,0.00025,2]
[345796577,1734481846728,-854.04481061,0.00025,2]
[345796578,1734481846744,-1110.384,0.00025,2]
[345796579,1734481846756,-536.86000024,0.00025,2]
[345796580,1734481846770,-262.520001,0.00025,2]
[345796581,1734481846842,-262.47,0.00024998,4]
[345796582,1734481846855,-237.53,0.00024998,4]
[345796583,1734481846865,-136.02080001,0.00024999,4]
[345796584,1734481846884,-363.97919999,0.00024999,4]
[345796585,1734481846894,-285.26,0.00024999,4]
[345796586,1734481846904,-1070.70619385,0.00024999,10]
[345796587,1734481846913,-500.0,0.00024999,4]
[345796588,1734481846923,-1121.46152061,0.00025,2]
[345796589,1734481846934,-30579.78,0.00025,2]
[345796590,1734481846945,-47760.0,0.00025,2]
[345796591,1734481846961,-929.26652671,0.00025,2]
[345796592,1734481846972,-828.57597287,0.00025,2]
[345796593,1734481846984,-424594.66721537,0.00025,2]
[345796594,1734481847000,-500.0,0.00024999,4]
[345796595,1734481847009,-12193.4031788,0.00025,2]
[345796596,1734481847125,-500.0,0.00024999,4]
[345796597,1734481847134,-500.0,0.00024999,4]
[345796598,1734481847144,-500.0,0.00024999,4]
[345796599,1734481847154,-500.0,0.00024999,4]
[345796600,1734481847163,-500.0,0.00024999,4]
[345796601,1734481847173,-500.0,0.00024999,4]
[345796602,1734481847183,-541.35,0.00024999,4]
[345796603,1734481847192,-774844.04011072,0.00025,2]
[345796604,1734481847204,-59156.774,0.00025,2]
[345796605,1734481847216,-386.19093168,0.00025,2]
[345796606,1734481847228,-1308.826537,0.00025,2]
[345796607,1734481847243,-1736.9329318,0.00025,2]
[345796608,1734481847257,-1548.59779158,0.00025,2]
[345796609,1734481847273,-3173.4500005,0.00025,2]
[345796610,1734481847284,-359800.00000016,0.00025,2]
[345796611,1734481847297,-3089.9999995,0.00025,2]
[345796612,1734481847309,-63797.17787067,0.00025,2]
[345796613,1734481847320,-300.0,0.00025,2]
[345796614,1734481848648,224.49,0.00022,2]
[345796619,1734482115319,10000.0,0.00022,2]
[345796620,1734482447026,5172.32250017,0.00022,2]
[345796625,1734482694314,771.15,0.00021617,2]
[345796633,1734482723955,157.14,0.00010137,2]
[345796634,1734482724163,157.14,0.00020708,2]
[345796653,1734483031733,-3873.87000001,0.00023,2]
[345796654,1734483031842,-1536.3750353,0.00023,2]
[345796655,1734483031853,-4793.7,0.00023,2]
[345796656,1734483031898,-2247.3896067,0.00023,2]
[345796688,1734483037588,-4677.82886025,0.00023,2]
[345796689,1734483037646,-1919.66680772,0.00023,2]
[345796690,1734483037658,-10073.32674529,0.00023,2]
[345796691,1734483037668,-354.26791,0.00023097,7]
[345796692,1734483037677,-500.0,0.00023097,2]
[345796693,1734483037687,-271.97725572,0.00023232,2]
[345796694,1734483037696,-354.26791,0.00023297,7]
[345796695,1734483037707,-175.6,0.00023461,2]
[345796696,1734483037716,-741.07,0.00023471,2]
[345796697,1734483037725,-250.0,0.00023492,2]
[345796698,1734483037735,-354.26791,0.00023497,7]
[345796699,1734483037744,-204.52883481,0.00023561,2]
[345796700,1734483037753,-500.0,0.00023561,2]
[345796701,1734483037763,-150.0,0.00023562,2]
[345796702,1734483037772,-762.56,0.00023598,2]
[345796703,1734483037782,-597.13,0.00023601,2]
[345796704,1734483037792,-177.23,0.00023661,2]
[345796705,1734483037802,-354.26791,0.00023697,7]
[345796706,1734483037812,-1000.0,0.00023717,2]
[345796707,1734483037822,-436.168,0.0002375,2]
[345796708,1734483037831,-182.41,0.00023769,2]
[345796709,1734483037841,-771.15,0.00023881,2]
[345796710,1734483037851,-1190.17854901,0.000239,2]
[345796711,1734483037863,-1640.34775099,0.000239,2]
[345796712,1734483037873,-150.46,0.00023917,30]
[345796713,1734483037884,-4228.68366112,0.00023988,2]
[345796714,1734483037896,-442.43753106,0.00023988,2]
[345796715,1734483037908,-511.90603702,0.00023988,2]
[345796716,1734483037920,-349.94622246,0.00023988,2]
[345796717,1734483037931,-6517.44,0.00023988,2]
[345796718,1734483038491,-312.27156458,0.00023988,2]
[345796719,1734483038523,-757.25070126,0.00023988,2]
[345796720,1734483038535,-519.07829482,0.00023988,2]
[345796721,1734483038546,-3499.55504203,0.00023988,2]
[345796730,1734483039671,-5294.5,0.00023988,2]
[345796731,1734483039732,-437.89403996,0.00023988,2]
[345796732,1734483039743,-607.46602351,0.00023988,2]
[345796733,1734483039755,-2399.86991087,0.00023988,2]
[345796734,1734483039790,-3475.79030406,0.00023988,2]
[345796735,1734483039801,-4927.23480549,0.00023988,2]
[345796736,1734483039910,-4725.55656176,0.00023988,2]
[345796737,1734483039921,-10173.29694732,0.00024088,2]
[345796738,1734483039931,-354.26791,0.00024097,7]
[345796739,1734483039941,-947.0,0.0002425,2]
[345796740,1734483039951,-987.2,0.00024297,2]
[345796741,1734483039961,-354.26791,0.00024297,7]
[345796742,1734483039970,-354.26791,0.00024497,7]
[345796743,1734483039980,-947.0,0.000245,2]
[345796744,1734483039990,-178.2770547,0.000245,2]
[345796745,1734483039999,-182.41,0.00024648,2]
[345796746,1734483040009,-500.0,0.00024657,4]
[345796747,1734483040019,-500.0,0.00024657,4]
[345796749,1734483040028,-500.0,0.00024657,4]
[345796750,1734483040042,-500.0,0.00024657,7]
[345796751,1734483040051,-500.0,0.00024657,7]
[345796752,1734483040061,-500.0,0.00024657,7]
[345796753,1734483040071,-490.14,0.00024657,7]
[345796754,1734483040081,-150.0,0.00024658,2]
[345796755,1734483040091,-354.26791,0.00024697,7]
[345796756,1734483040101,-2438.0,0.000247,2]
[345796757,1734483040110,-1000.0,0.000247,2]
[345796758,1734483040120,-947.0,0.0002475,2]
[345796759,1734483040134,-1988.0,0.000248,3]
[345796760,1734483040144,-5346.85101723,0.000248,7]
[345796761,1734483040154,-500.0,0.000248,2]
[345796762,1734483040163,-175.83007295,0.000249,2]
[345796763,1734483040173,-181.14789607,0.000249,2]
[345796764,1734483040183,-365.91,0.000249,31]
[345796765,1734483040192,-365.91,0.000249,31]
[345796766,1734483040202,-365.91,0.000249,31]
[345796767,1734483040211,-365.91,0.000249,31]
[345796768,1734483040221,-365.91,0.000249,31]
[345796769,1734483040230,-365.91,0.000249,31]
[345796770,1734483040240,-365.91,0.000249,31]
[345796771,1734483040250,-365.91,0.000249,31]
[345796772,1734483040259,-365.91,0.000249,31]
[345796773,1734483040269,-365.91,0.000249,31]
[345796774,1734483040279,-365.91,0.000249,31]
[345796775,1734483040288,-365.91,0.000249,31]
[345796776,1734483040298,-365.91,0.000249,31]
[345796777,1734483040307,-365.91,0.000249,31]
[345796778,1734483040316,-365.91,0.000249,31]
[345796779,1734483040326,-365.91,0.000249,31]
[345796780,1734483040335,-305.16802489,0.00024973,2]
[345796781,1734483040345,-500.0,0.00024973,2]
[345796782,1734483040355,-150.121809,0.00024998,5]
[345796783,1734483040365,-150.121809,0.00024998,7]
[345796784,1734483040377,-199.121809,0.00024998,13]
[345796785,1734483040387,-151.121809,0.00024998,9]
[345796786,1734483040397,-500.0,0.00024998,2]
[345796787,1734483040406,-527.4,0.00024998,2]
[345796788,1734483040416,-610.85534743,0.00024998,2]
[345796789,1734483040425,-500.0,0.00024998,4]
[345796790,1734483040435,-500.0,0.00024998,4]
[345796791,1734483040444,-500.0,0.00024998,4]
[345796792,1734483040455,-500.0,0.00024998,4]
[345796793,1734483040464,-500.0,0.00024998,4]
[345796794,1734483040474,-460.83873439,0.00024998,4]
[345796795,1734483040486,-39.16126561,0.00024998,4]
[345796796,1734483040496,-500.0,0.00024998,4]
[345796797,1734483040506,-410.0889433,0.00024998,4]
[345796798,1734483040518,-89.9110567,0.00024998,4]
[345796799,1734483040527,-500.0,0.00024998,4]
[345796800,1734483040537,-500.0,0.00024998,4]
[345796801,1734483040547,-411.52,0.00024998,4]
[345796802,1734483040556,-500.0,0.00024998,4]
[345796803,1734483040566,-500.0,0.00024998,4]
[345796804,1734483040575,-500.0,0.00024998,4]
[345796805,1734483040585,-518.15856446,0.00024998,4]
[345796806,1734483040594,-500.0,0.00024998,4]
[345796807,1734483040604,-500.0,0.00024998,4]
[345796808,1734483040613,-500.0,0.00024998,4]
[345796809,1734483040623,-500.0,0.00024998,4]
[345796810,1734483040637,-488.68529884,0.00024998,4]
[345796811,1734483040649,-11.31470116,0.00024998,4]
[345796812,1734483040659,-500.0,0.00024998,4]
[345796813,1734483040669,-500.0,0.00024998,4]
[345796814,1734483040679,-351.07533884,0.00024998,4]
[345796816,1734483042420,10000.0,0.00022,2]
[345796818,1734483042565,-148.92466116,0.00024998,4]
[345796819,1734483042577,-318.84,0.00024998,4]
[345796820,1734483042587,-311.72533884,0.00024998,4]
[345796821,1734483042598,-188.27466116,0.00024998,4]
[345796822,1734483042607,-500.0,0.00024998,4]
[345796823,1734483042616,-500.0,0.00024998,4]
[345796824,1734483042628,-500.0,0.00024998,4]
[345796825,1734483042641,-500.0,0.00024998,4]
[345796826,1734483042651,-500.0,0.00024998,4]
[345796827,1734483042660,-500.0,0.00024998,4]
[345796828,1734483042671,-500.0,0.00024998,4]
[345796829,1734483042680,-500.0,0.00024998,4]
[345796830,1734483042690,-183.72533884,0.00024998,4]
[345796831,1734483042701,-316.27466116,0.00024998,4]
[345796832,1734483042711,-500.0,0.00024998,4]
[345796833,1734483042720,-500.0,0.00024998,4]
[345796834,1734483042730,-500.0,0.00024998,4]
[345796835,1734483042739,-500.0,0.00024998,4]
[345796836,1734483042749,-500.0,0.00024998,4]
[345796837,1734483042759,-500.0,0.00024998,4]
[345796838,1734483042768,-500.0,0.00024998,4]
[345796839,1734483042778,-500.0,0.00024998,4]
[345796840,1734483042787,-500.0,0.00024998,4]
[345796841,1734483042796,-500.0,0.00024998,4]
[345796842,1734483042805,-500.0,0.00024998,4]
[345796843,1734483042815,-426.27,0.00024998,4]
[345796844,1734483042824,-500.0,0.00024998,4]
[345796845,1734483042834,-500.0,0.00024998,4]
[345796846,1734483042843,-500.0,0.00024998,4]
[345796847,1734483042852,-500.0,0.00024998,4]
[345796848,1734483042861,-1000.0,0.00024998,4]
[345796849,1734483042871,-500.0,0.00024998,4]
[345796850,1734483042884,-500.0,0.00024998,4]
[345796851,1734483042894,-535.4,0.00024998,4]
[345796852,1734483042903,-500.0,0.00024998,4]
[345796853,1734483042912,-331.82,0.00024998,4]
[345796854,1734483042921,-500.0,0.00024998,4]
[345796855,1734483042933,-500.0,0.00024998,4]
[345796856,1734483042942,-500.0,0.00024998,4]
[345796857,1734483042951,-500.0,0.00024998,4]
[345796858,1734483042963,-500.0,0.00024998,4]
[345796859,1734483042972,-500.0,0.00024998,4]
[345796860,1734483042981,-500.0,0.00024998,4]
[345796861,1734483042990,-500.0,0.00024998,4]
[345796862,1734483043000,-500.0,0.00024998,4]
[345796863,1734483043009,-500.0,0.00024998,4]
[345796864,1734483043019,-500.0,0.00024998,4]
[345796865,1734483043028,-500.0,0.00024998,4]
[345796866,1734483043037,-500.0,0.00024998,4]
[345796867,1734483043046,-61.53328884,0.00024998,4]
[345796869,1734483043058,-438.46671116,0.00024998,4]
[345796870,1734483043067,-464.82166453,0.00024998,4]
[345796871,1734483043078,-35.17833547,0.00024998,4]
[345796872,1734483043087,-500.0,0.00024998,4]
[345796873,1734483043097,-416.59681409,0.00024998,4]
[345796874,1734483043108,-83.40318591,0.00024998,4]
[345796875,1734483043117,-500.0,0.00024998,4]
[345796876,1734483043126,-557.98,0.00024998,4]
[345796877,1734483043145,-500.0,0.00024998,4]
[345796878,1734483043155,-500.0,0.00024998,4]
[345796879,1734483043165,-500.0,0.00024998,4]
[345796880,1734483043176,-184.23754209,0.00024998,4]
[345796881,1734483043188,-315.76245791,0.00024998,4]
[345796882,1734483043197,-38.38954209,0.00024998,4]
[345796883,1734483043208,-461.61045791,0.00024998,4]
[345796884,1734483043217,-500.0,0.00024998,4]
[345796885,1734483043227,-500.0,0.00024998,4]
[345796886,1734483043238,-500.0,0.00024998,4]
[345796887,1734483043247,-158.07604165,0.00024998,4]
[345796888,1734483043256,-500.0,0.00024998,4]
[345796889,1734483043264,-401.29894717,0.00024998,4]
[345796890,1734483043274,-500.0,0.00024998,4]
[345796891,1734483043285,-500.0,0.00024998,4]
[345796892,1734483043294,-500.0,0.00024998,4]
[345796893,1734483043304,-500.0,0.00024998,4]
[345796894,1734483043313,-548.91,0.00024998,4]
[345796895,1734483043323,-500.0,0.00024998,4]
[345796896,1734483043333,-500.0,0.00024998,4]
[345796897,1734483043342,-581.92,0.00024998,4]
[345796898,1734483043352,-500.0,0.00024998,4]
[345796899,1734483043362,-500.0,0.00024998,4]
[345796900,1734483043558,-500.0,0.00024998,4]
[345796901,1734483043568,-500.0,0.00024998,4]
[345796902,1734483043577,-500.0,0.00024998,4]
[345796903,1734483043587,-500.0,0.00024998,4]
[345796904,1734483043596,-1214.96573401,0.00024999,10]
[345796905,1734483043605,-1214.965734,0.00024999,10]
[345796906,1734483043614,-1214.96573401,0.00024999,10]
[345796907,1734483043626,-1000.0,0.00024999,2]
[345796908,1734483043639,-500.0,0.00024999,4]
[345796909,1734483043648,-500.0,0.00024999,4]
[345796910,1734483043657,-500.0,0.00024999,4]
[345796911,1734483043667,-500.0,0.00024999,4]
[345796912,1734483043678,-500.0,0.00024999,4]
[345796913,1734483043688,-500.0,0.00024999,4]
[345796914,1734483043697,-262.96,0.00024999,4]
[345796915,1734483043707,-500.0,0.00024999,4]
[345796916,1734483043717,-500.0,0.00024999,4]
[345796917,1734483043726,-393.17203232,0.00024999,4]
[345796918,1734483043735,-500.0,0.00024999,2]
[345796919,1734483043745,-500.0,0.00024999,4]
[345796920,1734483043754,-174.37,0.00024999,4]
[345796921,1734483043764,-532.78015568,0.00024999,4]
[345796922,1734483043773,-500.0,0.00024999,4]
[345796923,1734483043783,-500.0,0.00024999,4]
[345796924,1734483043793,-500.0,0.00024999,4]
[345796925,1734483043802,-500.0,0.00024999,4]
[345796926,1734483043812,-500.0,0.00024999,4]
[345796927,1734483043822,-500.0,0.00024999,4]
[345796928,1734483043832,-500.0,0.00024999,4]
[345796929,1734483043842,-500.0,0.00024999,4]
[345796930,1734483043851,-346.00516325,0.00024999,4]
[345796931,1734483043864,-153.99483675,0.00024999,4]
[345796932,1734483043874,-500.0,0.00024999,4]
[345796933,1734483043888,-594.22,0.00024999,4]
[345796934,1734483043897,-790.58516325,0.00024999,10]
[345796935,1734483043909,-280.1210306,0.00024999,10]
[345796936,1734483043919,-185.7149694,0.00024999,4]
[345796937,1734483043930,-314.2850306,0.00024999,4]
[345796938,1734483043940,-500.0,0.00024999,4]
[345796939,1734483043949,-392.15831941,0.00024999,4]
[345796940,1734483043961,-107.84168059,0.00024999,4]
[345796941,1734483043971,-615.82610775,0.00024999,4]
[345796942,1734483043980,-500.0,0.00024999,4]
[345796943,1734483043989,-50.28220666,0.00024999,4]
[345796944,1734483044001,-449.71779334,0.00024999,4]
[345796945,1734483044010,-500.0,0.00024999,4]
[345796946,1734483044019,-500.0,0.00024999,4]
[345796947,1734483044028,-395.95026422,0.00024999,4]
[345796948,1734483044040,-104.04973578,0.00024999,4]
[345796949,1734483044050,-286.45027022,0.00024999,4]
[345796950,1734483044062,-213.54972978,0.00024999,4]
[345796951,1734483044071,-500.0,0.00024999,4]
[345796952,1734483044081,-500.0,0.00024999,4]
[345796953,1734483044091,-254.82,0.00024999,4]
[345796954,1734483044100,-500.0,0.00024999,4]
[345796955,1734483044110,-500.0,0.00024999,4]
[345796956,1734483044120,-500.0,0.00024999,4]
[345796957,1734483044134,-500.0,0.00024999,4]
[345796958,1734483044144,-500.0,0.00024999,4]
[345796959,1734483044154,-500.0,0.00024999,4]
[345796960,1734483044163,-367.63027022,0.00024999,4]
[345796964,1734483045627,-204.20744907,0.00024999,4]
[345796965,1734483045646,-500.0,0.00024999,4]
[345796966,1734483045655,-133.85055393,0.00024999,4]
[345796967,1734483045685,-366.14944607,0.00024999,4]
[345796968,1734483045695,-500.0,0.00024999,4]
[345796969,1734483045706,-500.0,0.00024999,4]
[345796970,1734483045715,-500.0,0.00024999,4]
[345796971,1734483045725,-500.0,0.00024999,4]
[345796972,1734483045735,-500.0,0.00024999,4]
[345796973,1734483045744,-500.0,0.00024999,4]
[345796974,1734483045754,-500.0,0.00024999,4]
[345796975,1734483045763,-500.0,0.00024999,4]
[345796976,1734483045773,-500.0,0.00024999,4]
[345796977,1734483045782,-500.0,0.00024999,4]
[345796978,1734483045792,-500.0,0.00024999,4]